fUST/lending_fUST_20260308
["ID","MTS","AMOUNT","RATE_DAILY","PERIOD"]
[407901935,1772901024143,-1159.5,0.00036383,120]
[407901936,1772901024216,-958.73,0.00036383,120]
[407901937,1772901024288,-888.94,0.00036383,120]
[407901938,1772901024361,-5073.17,0.00036383,120]
[407901939,1772901024433,-692.25,0.00036383,120]
[407901940,1772901024500,-501.0,0.00036383,120]
[407901941,1772901024568,-501.94,0.00036383,120]
[407901942,1772901024638,-701.58,0.00036383,120]
[407901943,1772901024706,-1159.5,0.00036383,120]
[407901944,1772901024774,-958.73,0.00036383,120]
[407901945,1772901024844,-888.94,0.00036383,120]
[407901946,1772901024922,-5073.17,0.00036383,120]
[407901947,1772901024996,-692.25,0.00036383,120]
[407901948,1772901025070,-501.0,0.00036383,120]
[407901949,1772901025144,-501.94,0.00036383,120]
[407901950,1772901025219,-1159.5,0.00036383,120]
[407901951,1772901025292,-958.73,0.00036383,120]
[407901952,1772901025366,-888.94,0.00036383,120]
[407901953,1772901025437,-701.58,0.00036383,120]
[407901954,1772901025508,-5073.17,0.00036383,120]
[407901955,1772901025577,-500.0,0.00036383,120]
[407901956,1772901025647,-692.25,0.00036383,120]
[407901957,1772901025715,-501.0,0.00036383,120]
[407901958,1772901025788,-500.9617815,0.00036383,120]
[407901959,1772901025863,-501.94,0.00036383,120]
[407901960,1772901025937,-1159.5,0.00036383,120]
[407901961,1772901026009,-958.73,0.00036383,120]
[407901962,1772901026080,-888.94,0.00036383,120]
[407901963,1772901026151,-701.58,0.00036383,120]
[407901964,1772901026232,-5073.17,0.00036383,120]
[407901965,1772901026317,-692.25,0.00036383,120]
[407901966,1772901026392,-500.0,0.00036383,120]
[407901967,1772901026469,-501.98484711,0.00036383,120]
[407901968,1772901026557,-501.0,0.00036383,120]
[407901969,1772901026645,-1159.5,0.00036383,120]
[407901970,1772901026718,-888.94,0.00036383,120]
[407901971,1772901026791,-958.73,0.00036383,120]
[407901972,1772901026872,-5073.17,0.00036383,120]
[407901973,1772901026943,-692.25,0.00036383,120]
[407901974,1772901027015,-1159.5,0.00036383,120]
[407901975,1772901027086,-501.0,0.00036383,120]
[407901976,1772901027158,-958.73,0.00036383,120]
[407901977,1772901027233,-888.94,0.00036383,120]
[407901978,1772901027306,-271.91389501,0.00036383,120]
[407901979,1772901027382,-701.58,0.00036383,120]
[407901980,1772901027461,-692.25,0.00036383,120]
[407901981,1772901027531,-1159.5,0.00036383,120]
[407901982,1772901027602,-501.0,0.00036383,120]
[407901983,1772901027675,-888.94,0.00036383,120]
[407901984,1772901027748,-958.73,0.00036383,120]
[407901985,1772901027827,-692.25,0.00036383,120]
[407901986,1772901027901,-1159.5,0.00036383,120]
[407901987,1772901027978,-701.58,0.00036383,120]
[407901988,1772901028048,-5073.17,0.00036383,120]
[407901989,1772901028120,-888.94,0.00036383,120]
[407901990,1772901028189,-958.73,0.00036383,120]
[407901991,1772901028256,-501.0,0.00036383,120]
[407901992,1772901028325,-719.73,0.00036383,120]
[407901993,1772901028395,-500.0,0.00036383,120]
[407901994,1772901028473,-701.58,0.00036383,120]
[407901995,1772901028544,-692.25,0.00036383,120]
[407901996,1772901028613,-1159.5,0.00036383,120]
[407901997,1772901028685,-888.94,0.00036383,120]
[407901998,1772901028962,-5073.17,0.00036383,120]
[407901999,1772901029035,-958.90568035,0.00036383,120]
[407902000,1772901029105,-501.0,0.00036383,120]
[407902001,1772901029174,-500.0,0.00036383,120]
[407902002,1772901029250,-719.73,0.00036383,120]
[407902003,1772901029322,-500.0,0.00036383,120]
[407902004,1772901029392,-692.25,0.00036383,120]
[407902005,1772901029463,-1159.5,0.00036383,120]
[407902006,1772901029538,-701.58216055,0.00036383,120]
[407902007,1772901029609,-888.94,0.00036383,120]
[407902008,1772901029679,-501.0,0.00036383,120]
[407902009,1772901029751,-5073.17,0.00036383,120]
[407902010,1772901029825,-500.0,0.00036383,120]
[407902011,1772901029894,-719.73,0.00036383,120]
[407902012,1772901029965,-692.25,0.00036383,120]
[407902013,1772901030038,-1159.5,0.00036383,120]
[407902014,1772901030109,-500.0,0.00036383,120]
[407902015,1772901030187,-5073.17,0.00036383,120]
[407902016,1772901030261,-501.59126991,0.00036383,120]
[407902017,1772901030333,-888.94,0.00036383,120]
[407902018,1772901030400,-501.0,0.00036383,120]
[407902019,1772901030472,-692.25,0.00036383,120]
[407902020,1772901030541,-719.73,0.00036383,120]
[407902021,1772901030606,-1159.5,0.00036383,120]
[407902022,1772901030671,-501.96776571,0.00036383,120]
[407902023,1772901030736,-889.14966882,0.00036383,120]
[407902024,1772901030806,-5073.17,0.00036383,120]
[407902025,1772901030877,-501.0,0.00036383,120]
[407902026,1772901030947,-719.73,0.00036383,120]
[407902027,1772901031016,-692.25,0.00036383,120]
[407902028,1772901031088,-1159.5,0.00036383,120]
[407902029,1772901031164,-3176.27,0.00036383,120]
[407902030,1772901031236,-5073.17,0.00036383,120]
[407902031,1772901031311,-500.0,0.00036383,120]
[407902032,1772901031386,-501.23567662,0.00036383,120]
[407902033,1772901031461,-719.73,0.00036383,120]
[407902042,1772901031547,-692.25,0.00036383,120]
[407902046,1772901031625,-1159.5,0.00036383,120]
[407902047,1772901031699,-500.0,0.00036383,120]
[407902048,1772901031770,-3176.27,0.00036383,120]
[407902049,1772901031838,-5073.17,0.00036383,120]
[407902050,1772901031907,-719.73,0.00036383,120]
[407902051,1772901031976,-692.25,0.00036383,120]
[407902052,1772901032048,-500.0,0.00036383,120]
[407902053,1772901032117,-1159.5,0.00036383,120]
[407902054,1772901032186,-3176.27,0.00036383,120]
[407902055,1772901032260,-719.73,0.00036383,120]
[407902056,1772901032335,-5073.17,0.00036383,120]
[407902057,1772901032408,-1159.5,0.00036383,120]
[407902058,1772901032481,-692.25,0.00036383,120]
[407902059,1772901032552,-3176.27,0.00036383,120]
[407902060,1772901032640,-500.0,0.00036383,120]
[407902061,1772901032711,-719.73,0.00036383,120]
[407902062,1772901032779,-5073.17,0.00036383,120]
[407902063,1772901032852,-1159.5,0.00036383,120]
[407902064,1772901032923,-692.36632389,0.00036383,120]
[407902065,1772901032991,-3176.27,0.00036383,120]
[407902066,1772901033061,-500.0,0.00036383,120]
[407902067,1772901033136,-719.73,0.00036383,120]
[407902068,1772901033210,-5073.3433535,0.00036383,120]
[407902069,1772901033281,-1159.5,0.00036383,120]
[407902070,1772901033353,-3176.27,0.00036383,120]
[407902071,1772901033428,-500.0,0.00036383,120]
[407902072,1772901033501,-719.73,0.00036383,120]
[407902073,1772901033575,-1159.5,0.00036383,120]
[407902074,1772901033649,-3176.27,0.00036383,120]
[407902075,1772901033720,-500.0,0.00036383,120]
[407902076,1772901033791,-500.0,0.00036383,120]
[407902077,1772901033861,-719.73,0.00036383,120]
[407902078,1772901033931,-1159.53313626,0.00036383,120]
[407902079,1772901034002,-3176.27,0.00036383,120]
[407902080,1772901034075,-246.92558554,0.00036383,120]
[407902081,1772901034145,-500.0,0.00036383,120]
[407902082,1772901034217,-719.73,0.00036383,120]
[407902083,1772901034291,-500.0,0.00036383,120]
[407902084,1772901034364,-3176.27,0.00036383,120]
[407902085,1772901034435,-500.0,0.00036383,120]
[407902086,1772901034507,-719.73,0.00036383,120]
[407902087,1772901034578,-500.0,0.00036383,120]
[407902088,1772901034650,-3176.27,0.00036383,120]
[407902089,1772901034722,-719.73,0.00036383,120]
[407902090,1772901034795,-500.0,0.00036383,120]
[407902091,1772901034866,-3176.27,0.00036383,120]
[407902092,1772901034937,-719.73,0.00036383,120]
[407902093,1772901035009,-500.0,0.00036383,120]
[407902094,1772901035086,-3176.27,0.00036383,120]
[407902095,1772901035166,-719.73,0.00036383,120]
[407902096,1772901035245,-500.0,0.00036383,120]
[407902097,1772901035292,-500.0,0.00036383,120]
[407902098,1772901035341,-594.2,0.00036383,120]
[407902099,1772901035390,-719.73,0.00036383,120]
[407902100,1772901035436,-3176.27,0.00036383,120]
[407902101,1772901035484,-500.0,0.00036383,120]
[407902102,1772901035530,-608.645625,0.00036383,120]
[407902103,1772901035576,-3176.27,0.00036383,120]
[407902104,1772901035622,-594.2,0.00036383,120]
[407902105,1772901035670,-719.73,0.00036383,120]
[407902106,1772901035718,-500.0,0.00036383,120]
[407902107,1772901035767,-719.73,0.00036383,120]
[407902108,1772901035815,-3176.27,0.00036383,120]
[407902109,1772901035864,-594.2,0.00036383,120]
[407902110,1772901035911,-500.0,0.00036383,120]
[407902111,1772901035957,-719.73,0.00036383,120]
[407902112,1772901036005,-3176.27,0.00036383,120]
[407902113,1772901036055,-500.0,0.00036383,120]
[407902114,1772901036413,-594.2,0.00036383,120]
[407902115,1772901036458,-719.73,0.00036383,120]
[407902116,1772901036503,-594.2,0.00036383,120]
[407902117,1772901036548,-500.0,0.00036383,120]
[407902118,1772901036593,-3176.27,0.00036383,120]
[407902119,1772901036639,-2078.06,0.00036383,120]
[407902120,1772901036685,-719.73,0.00036383,120]
[407902121,1772901036730,-594.2,0.00036383,120]
[407902122,1772901036772,-500.0,0.00036383,120]
[407902123,1772901036814,-3176.27,0.00036383,120]
[407902124,1772901036862,-2078.06,0.00036383,120]
[407902125,1772901036905,-719.95009064,0.00036383,120]
[407902126,1772901036949,-500.0,0.00036383,120]
[407902127,1772901036989,-500.0,0.00036383,120]
[407902128,1772901037031,-594.2,0.00036383,120]
[407902129,1772901037069,-500.0,0.00036383,120]
[407902130,1772901037110,-3176.27,0.00036383,120]
[407902131,1772901037154,-2078.06,0.00036383,120]
[407902133,1772901037198,-501.27130989,0.00036383,120]
[407902137,1772901037243,-594.2,0.00036383,120]
[407902138,1772901037284,-500.0,0.00036383,120]
[407902139,1772901037323,-500.0,0.00036383,120]
[407902143,1772901037362,-2078.06,0.00036383,120]
[407902145,1772901037403,-3176.27,0.00036383,120]
[407902147,1772901037445,-594.2,0.00036383,120]
[407902148,1772901037484,-500.0,0.00036383,120]
[407902149,1772901037523,-562.90003414,0.00036383,120]
[407902154,1772901037562,-2078.06,0.00036383,120]
[407902159,1772901037599,-3176.27,0.00036383,120]
[407902164,1772901037639,-1484.87,0.00036383,120]
[407902169,1772901037677,-500.0,0.00036383,120]
[407902174,1772901037717,-594.2,0.00036383,120]
[407902179,1772901037760,-2078.06,0.00036383,120]
[407902183,1772901037801,-3176.27,0.00036383,120]
[407902186,1772901037841,-1484.87,0.00036383,120]
[407902191,1772901037881,-500.0,0.00036383,120]
[407902197,1772901037923,-594.2,0.00036383,120]
[407902202,1772901037963,-3176.27,0.00036383,120]
[407902206,1772901038002,-500.0,0.00036383,120]
[407902207,1772901038041,-1484.87,0.00036383,120]
[407902208,1772901038080,-2078.06,0.00036383,120]
[407902209,1772901038120,-594.2,0.00036383,120]
[407902210,1772901038158,-3176.37816803,0.00036383,120]
[407902211,1772901038198,-1484.87,0.00036383,120]
[407902212,1772901038237,-500.0,0.00036383,120]
[407902213,1772901038277,-2078.06,0.00036383,120]
[407902214,1772901038316,-594.2,0.00036383,120]
[407902215,1772901038355,-500.0,0.00036383,120]
[407902216,1772901038394,-594.2,0.00036383,120]
[407902217,1772901038434,-3005.78,0.00036383,120]
[407902218,1772901038477,-500.0,0.00036383,120]
[407902219,1772901038519,-1484.87,0.00036383,120]
[407902220,1772901038560,-2078.06,0.00036383,120]
[407902221,1772901038601,-174.51213622,0.00036383,120]
[407902222,1772901038643,-1484.87,0.00036383,120]
[407902223,1772901038682,-594.2,0.00036383,120]
[407902224,1772901038719,-3005.78,0.00036383,120]
[407902225,1772901038759,-2078.06,0.00036383,120]
[407902226,1772901038798,-1484.87,0.00036383,120]
[407902227,1772901038833,-594.2,0.00036383,120]
[407902228,1772901038870,-3005.78,0.00036383,120]
[407902229,1772901038905,-500.0,0.00036383,120]
[407902230,1772901038942,-2078.06,0.00036383,120]
[407902231,1772901038977,-1484.87,0.00036383,120]
[407902232,1772901039015,-500.0,0.00036383,120]
[407902233,1772901039052,-594.2,0.00036383,120]
[407902234,1772901039090,-500.0,0.00036383,120]
[407902235,1772901039129,-3005.78,0.00036383,120]
[407902236,1772901039167,-2078.06,0.00036383,120]
[407902237,1772901039205,-1484.87,0.00036383,120]
[407902238,1772901039243,-500.0,0.00036383,120]
[407902239,1772901039281,-594.2,0.00036383,120]
[407902240,1772901039319,-500.0,0.00036383,120]
[407902241,1772901039360,-3005.78,0.00036383,120]
[407902242,1772901039400,-1484.87,0.00036383,120]
[407902243,1772901039437,-500.0,0.00036383,120]
[407902244,1772901039477,-594.2,0.00036383,120]
[407902245,1772901039517,-601.90156768,0.00036383,120]
[407902246,1772901039559,-3005.78,0.00036383,120]
[407902249,1772901039601,-2078.06,0.00036383,120]
[407902252,1772901039644,-1484.87,0.00036383,120]
[407902253,1772901039687,-110.59774466,0.00036383,120]
[407902565,1772901043397,7023.5,0.0003,30]
[407902569,1772901043434,463.0,0.00030136,30]
[407902615,1772901043868,579.08,0.000301,30]
[407902655,1772901044233,5000.0,2.001e-05,2]
[407902664,1772901044400,211.0505351,0.00029973,60]
[407902695,1772901047748,258.0,0.000205,120]
[407902696,1772901050062,1021.21,0.0003,30]
[407902697,1772901050263,-251.85065739,2.02e-05,2]
[407902698,1772901050273,-167.515006,2.039e-05,2]
[407902699,1772901050283,-167.515006,2.141e-05,2]
[407902700,1772901050292,-167.515006,2.243e-05,2]
[407902701,1772901050301,-167.515006,2.345e-05,2]
[407902702,1772901050311,-672.026141,2.369e-05,2]
[407902703,1772901050320,-167.515006,2.447e-05,2]
[407902704,1772901050329,-672.026141,2.469e-05,2]
[407902705,1772901050338,-672.026141,2.568e-05,2]
[407902706,1772901050347,-672.026141,2.668e-05,2]
[407902707,1772901050357,-672.026141,2.768e-05,2]
[407902708,1772901050366,-554.99983734,2.868e-05,2]
[407902709,1772901050377,-117.02630366,2.868e-05,2]
[407902710,1772901050387,-373.55269485,3.243e-05,2]
[407902711,1772901050398,-334.36968824,3.243e-05,2]
[407902712,1772901050407,-4086.408057,3.479e-05,2]
[407902713,1772901050416,-8758.03386922,3.762e-05,2]
[407902714,1772901050425,-189.0,3.773e-05,2]
[407902715,1772901050434,-297.18377572,4.02e-05,2]
[407902716,1772901050444,-640.088877,5.479e-05,2]
[407902717,1772901050454,-499.999999,5.8e-05,2]
[407902718,1772901050464,-342.51689405,6.02e-05,2]
[407902719,1772901050473,-7203.7768631,7.654e-05,2]
[407902720,1772901050482,-200.0,8e-05,7]
[407902721,1772901050492,-387.85001238,8.02e-05,2]
[407902722,1772901050501,-288.71,8.119e-05,2]
[407902723,1772901050510,-500.0,8.219e-05,2]
[407902724,1772901050520,-500.0,8.493e-05,2]
[407902725,1772901050530,-500.0,8.767e-05,2]
[407902726,1772901050539,-5000.0,9e-05,2]
[407902727,1772901050548,-500.0,9.041e-05,2]
[407902728,1772901050557,-500.0,9.205e-05,2]
[407902729,1772901050568,-500.0,9.205e-05,2]
[407902730,1772901050578,-500.0,9.205e-05,2]
[407902731,1772901050587,-500.0,9.26e-05,2]
[407902732,1772901050597,-500.0,9.26e-05,2]
[407902733,1772901050606,-500.0,9.26e-05,2]
[407902734,1772901050617,-500.0,9.315e-05,2]
[407902735,1772901050627,-500.0,9.315e-05,2]
[407902736,1772901050636,-500.0,9.315e-05,2]
[407902737,1772901050645,-500.0,9.315e-05,2]
[407902738,1772901050655,-500.0,9.369e-05,2]
[407902739,1772901050665,-500.0,9.369e-05,2]
[407902740,1772901050675,-500.0,9.369e-05,2]
[407902741,1772901050684,-500.0,9.424e-05,2]
[407902742,1772901050694,-500.0,9.424e-05,2]
[407902743,1772901050703,-500.0,9.424e-05,2]
[407902744,1772901050713,-500.0,9.479e-05,2]
[407902745,1772901050723,-500.0,9.479e-05,2]
[407902746,1772901050732,-500.0,9.479e-05,2]
[407902747,1772901050742,-500.0,9.534e-05,2]
[407902748,1772901050753,-500.0,9.534e-05,2]
[407902749,1772901050766,-500.0,9.534e-05,2]
[407902750,1772901050776,-500.0,9.589e-05,2]
[407902751,1772901050786,-500.0,9.589e-05,2]
[407902752,1772901050796,-500.0,9.589e-05,2]
[407902753,1772901050807,-532.35129047,9.589e-05,2]
[407902754,1772901050817,-500.0,9.643e-05,2]
[407902755,1772901050828,-430.55588051,9.643e-05,2]
[407902756,1772901050838,-500.0,9.643e-05,2]
[407902757,1772901050849,-500.0,9.698e-05,2]
[407902758,1772901050859,-500.0,9.698e-05,2]
[407902759,1772901050869,-500.0,9.753e-05,2]
[407902760,1772901050879,-500.0,9.753e-05,2]
[407902761,1772901050889,-500.0,9.808e-05,2]
[407902762,1772901050898,-500.0,9.808e-05,2]
[407902763,1772901050908,-500.0,9.863e-05,2]
[407902764,1772901050918,-500.0,9.863e-05,2]
[407902765,1772901050929,-500.0,9.917e-05,2]
[407902766,1772901050939,-500.0,9.917e-05,2]
[407902767,1772901050949,-500.0,9.972e-05,2]
[407902768,1772901050958,-500.0,9.972e-05,2]
[407902769,1772901050968,-2127.97596512,0.0001,2]
[407902770,1772901050977,-290.84144732,0.0001,2]
[407902771,1772901050987,-698.74188656,0.0001,7]
[407902772,1772901050996,-29506.28549429,0.0001,2]
[407902773,1772901051008,-5559.40485658,0.0001,2]
[407902774,1772901051210,-284.196,0.0001,2]
[407902775,1772901051293,-604.0,0.0001,2]
[407902776,1772901051307,-3101.95865404,0.0001,2]
[407902777,1772901051330,-1154.28534846,0.0001,2]
[407902778,1772901051342,-622.06039237,0.0001,2]
[407902779,1772901051389,1202.15,0.00027511,30]
[407902780,1772901051417,1602.87,0.00029939,30]
[407902781,1772901051534,-59167.80925426,0.0001,2]
[407902782,1772901051543,-1093.35861669,0.0001,2]
[407902783,1772901051552,-1000.0,0.0001,2]
[407902784,1772901051562,-3463.13738301,0.0001,2]
[407902785,1772901051572,-1281.03949984,0.0001,2]
[407902786,1772901051581,-821.15212149,0.0001,10]
[407902787,1772901051591,-195.0,0.0001,2]
[407902788,1772901051604,-433.18313072,0.0001002,2]
[407902789,1772901051614,-626.3525372,0.00010027,2]
[407902790,1772901051624,-500.0,0.00010027,2]
[407902791,1772901051633,-500.0,0.00010082,2]
[407902792,1772901051643,-500.0,0.00010137,2]
[407902793,1772901051653,-242.4589223,0.00010191,2]
[407902794,1772901051662,-250.0,0.00010411,2]
[407902795,1772901051672,-427.0060859,0.00010618,2]
[407902796,1772901051681,-151.0,0.00011,2]
[407902797,1772901051690,-151.0,0.00011,2]
[407902798,1772901051699,-151.0,0.00011,2]
[407902799,1772901051709,-151.0,0.00011,2]
[407902800,1772901051718,-151.0,0.00011,2]
[407902801,1772901051727,-151.0,0.00011,2]
[407902802,1772901051736,-7795.54773299,0.00011615,2]
[407902803,1772901051746,-151.0,0.000119,2]
[407902804,1772901051757,-478.51624905,0.0001202,2]
[407902805,1772901051767,-3132.46242927,0.00012329,2]
[407902806,1772901051778,-1136.279,0.00012329,2]
[407902807,1772901051970,2286.0,0.00030136,30]
[407902808,1772901052003,425.0,0.00030136,30]
[407902809,1772901052082,2286.0,0.00030136,30]
[407902810,1772901052120,814.0,0.00030136,30]
[407902811,1772901052179,1652.64,0.00026897,30]
[407902812,1772901052245,1652.64,0.00028794,30]
[407902813,1772901053352,814.0,0.00030136,30]
[407902814,1772901055423,678.0,0.00030136,30]
[407902815,1772901056046,2191.0,0.00030136,30]
[407902816,1772901056180,5000.0,0.00030136,30]
[407902817,1772901056809,622.0,0.00030136,30]
[407902818,1772901057375,2004.0,0.00030136,30]
[407902819,1772901058166,570.0,0.00030136,30]
[407902820,1772901058705,2088.0,0.00030136,30]
[407902821,1772901059496,522.0,0.00030136,30]
[407902822,1772901060011,1834.0,0.00030136,30]
[407902823,1772901067035,429.08,0.000301,30]
[407902824,1772901067659,522.0,0.000301,30]
[407902826,1772901068921,50000.0,0.0003,30]
[407902827,1772901069141,1757.0,0.00030136,30]
[407902828,1772901069272,435.0,0.000301,30]
[407902829,1772901070813,1684.0,0.00030136,30]
[407902830,1772901070922,1196.0,0.00030136,30]
[407902831,1772901072328,1614.0,0.00030136,30]
[407902832,1772901072417,897.0,0.00030136,30]
[407902833,1772901073695,500.0,0.00029863,60]
[407902834,1772901073948,500.0,0.00029918,60]
[407902835,1772901074084,292.73131126,0.00029973,60]
[407902836,1772901074133,1547.0,0.00030136,30]
[407902837,1772901074267,897.0,0.00030136,30]
[407902838,1772901076362,1482.0,0.00030136,30]
[407902839,1772901076469,449.0,0.00030136,30]
[407902840,1772901078067,1421.0,0.00030136,30]
[407902841,1772901078161,337.0,0.00030136,30]
[407902842,1772901079607,1361.0,0.00030136,30]
[407902843,1772901079696,252.0,0.00030136,30]
[407902844,1772901081499,1305.0,0.00030136,30]
[407902845,1772901081805,755.0,0.00030136,30]
[407902846,1772901083281,1250.0,0.00030136,30]
[407902847,1772901084909,1198.0,0.00030136,30]
[407902848,1772901086085,77908.9398249,0.0003013,120]
[407902849,1772901086403,1148.0,0.00030136,30]
[407902850,1772901088400,1100.0,0.00030136,30]
[407902851,1772901089884,1055.0,0.00030136,30]
[407902852,1772901091842,1011.0,0.00030136,30]
[407902853,1772901092540,190.0,0.00030136,30]
[407902854,1772901093682,969.0,0.00030136,30]
[407902856,1772901095255,928.0,0.00030136,30]
[407902857,1772901096767,5000.0,0.00030136,30]
[407902858,1772901097017,890.0,0.00030136,30]
[407902859,1772901099117,41676.0,0.0003,30]
[407902860,1772901099670,852.0,0.00030136,30]
[407902861,1772901100738,2015.46,0.00030136,120]
[407902862,1772901101499,817.0,0.00030136,30]
[407902863,1772901104079,783.0,0.00030136,30]
[407902864,1772901107889,750.0,0.00030136,30]
[407902865,1772901111470,719.0,0.00030136,30]
[407902866,1772901122017,689.0,0.00030136,30]
[407902867,1772901124545,660.0,0.00030136,30]
[407902868,1772901126433,633.0,0.00030136,30]
[407902869,1772901129117,606.0,0.00030136,30]
[407902870,1772901130540,581.0,0.00030136,30]
[407902871,1772901131968,557.0,0.00030136,30]
[407902872,1772901132548,1265897.4200348,0.0003,120]
[407902873,1772901134333,534.0,0.00030136,30]
[407902874,1772901136186,512.0,0.00030136,30]
[407902875,1772901137854,490.0,0.00030136,30]
[407902876,1772901139794,470.0,0.00030136,30]
[407902877,1772901141005,5000.0,0.00030136,30]
[407902878,1772901141767,450.0,0.00030136,30]
[407902879,1772901143409,431.0,0.00030136,30]
[407902880,1772901146858,827.0,0.00030136,30]
[407902881,1772901148608,758.0,0.00030136,30]
[407902882,1772901149019,1180.46,0.00026885,30]
[407902883,1772901150190,1180.46,0.0002877,30]
[407902884,1772901150294,694.0,0.00030136,30]
[407902885,1772901151497,694.0,0.00030136,30]
[407902886,1772901153327,579.0,0.00030136,30]
[407902887,1772901157560,6789.39,0.0003,30]
[407902888,1772901158203,531.0,0.00030136,30]
[407902891,1772901170341,486.0,0.00030136,30]
[407902892,1772901175852,446.0,0.00030136,30]
[407902893,1772901181340,5000.0,0.00030136,30]
[407902894,1772901181672,1225.0,0.00030136,30]
[407902895,1772901183465,919.0,0.00030136,30]
[407902896,1772901186459,689.0,0.00030136,30]
[407902897,1772901189057,517.0,0.00030136,30]
[407902898,1772901194686,387.0,0.00030136,30]
[407902899,1772901196137,291.0,0.00030136,30]
[407902900,1772901197687,868.5,0.00030136,30]
[407902902,1772901219493,1000.0,0.00027397,120]
[407902903,1772901219804,1000.0,0.00030137,120]
[407902904,1772901221386,5000.0,0.00030136,30]
[407902906,1772901261579,5000.0,0.00030136,30]
[407902908,1772901301802,5000.0,0.00030136,30]
[407902909,1772901315342,1009.62,0.0003,30]
[407902910,1772901341978,5000.0,0.00030136,30]
[407902911,1772901349622,20000.0,0.0003,30]
[407902912,1772901365782,238.0,0.00029589,35]
[407902913,1772901378130,20000.0,0.0003,30]
[407902914,1772901382153,5000.0,0.00030136,30]
[407902917,1772901422518,5000.0,0.00030136,30]
[407902920,1772901456375,6563.07,0.0003,30]
[407902922,1772901463066,5000.0,0.00030136,30]
[407902923,1772901503155,5000.0,0.00030136,30]
[407902924,1772901531528,1000.0,0.00027397,120]
[407902925,1772901531865,1000.0,0.00030137,120]
[407902926,1772901543325,5000.0,0.00030136,30]
[407902927,1772901575524,365.02,0.00019621,30]
[407902928,1772901576214,730.03,0.00021723,30]
[407902929,1772901576280,1095.05,0.00023826,30]
[407902930,1772901576634,1460.07,0.00025928,30]
[407902931,1772901576989,1825.09,0.0002803,30]
[407902932,1772901577334,2190.1,0.00030133,30]
[407902933,1772901583449,2137.81251324,0.00030136,30]
[407902934,1772901602471,212.09,2e-05,2]
[407902935,1772901602750,212.09,2e-05,2]
[407902936,1772901603045,212.09,2e-05,2]
[407902937,1772901603404,212.09,2e-05,2]
[407902938,1772901603736,212.09,2e-05,2]
[407902939,1772901604065,212.09,2e-05,2]
[407902940,1772901604364,212.09,2e-05,2]
[407902941,1772901604658,212.09,2e-05,2]
[407902942,1772901604943,212.09,2e-05,2]
[407902943,1772901605260,212.09,2e-05,2]
[407902944,1772901605571,212.09,2e-05,2]
[407902945,1772901605947,212.09,2e-05,2]
[407902946,1772901624540,1009.62,0.0003,30]
[407902947,1772901659521,1101.0,0.00021041,30]
[407902949,1772901680982,159.0,0.00029041,32]
[407902950,1772901702400,1931.48,0.00030136,120]
[407902952,1772901736522,2458.288472,0.00028512,33]
[407902953,1772901754685,6344.31,0.0003,30]